[Event "1. Bamberg-Open 2018"]
[Site "Bamberg"]
[Date "2018.05.10"]
[Round "2"]
[White "Rein, Joachim"]
[Black "Epding, Olaf"]
[Result "0-1"]
[ECO "D00"]
[WhiteElo "1942"]
[BlackElo "2238"]
[Annotator "NA"]
[PlyCount "72"]
[EventDate "2018.??.??"]
[EventType "swiss"]
[EventCountry "GER"]
[SourceTitle "playchess.com"]
[Source "ChessBase"]
[SourceQuality "1"]
[TimeControl "40/5400+30:900+30"]

{[%evp 22,64,-98,-102,-77,-107,-76,-85,-85,-108,-107,-137,-152,-193,-204,-213,-183,-164,-172,-180,-167,32767,-185,-212,-143,-182,-188,-193,-191,-220,-219,-222,-181,-249,-235,-267,-269,-235,-255,-495,-526,-520,-539,-548,-587]} 1. d4 {[%emt 0:00:00]} d5 {[%emt 0:00:10]} 2. e3 {[%emt 0:00:00]} c5 {[%emt 0:00:51]} 3. f4 {[%emt 0:00:03]} Nc6 {[%emt 0:02:04]} 4. c3 {[%emt 0:00:07]} Nf6 {[%emt 0:04:47]} 5. Bd3 {[%emt 0:00:16]} Bg4 {[%emt 0:02:11]} 6. Nf3 {[%emt 0:00:16]} e6 {[%emt 0:00:50]} 7. O-O {[%emt 0:00:16]} Bd6 {[%emt 0:01:08]} 8. Nbd2 {[%emt 0:02:07] D00: 1 d4 d5: Unusual lines} (8. Qe1 Bf5 9. Be2 Qb6 10. Kh1 h6 11. a4 c4 12. Ne5 Na5 13. Nd2 Ne4 14. Nef3 O-O-O 15. Nxe4 Bxe4 {0-1 (60) Sotsky,A (2348)-Kamsky,G (2648) Novi Sad 2016}) 8... cxd4 {[%emt 0:03:43]} 9. cxd4 {[%emt 0:00:34]} O-O {[%emt 0:00:15]} 10. Qe1 {[%emt 0:00:29]} Nb4 {[%emt 0:02:05]} 11. Bb1 {[%emt 0:00:46]} Bf5 $146 {[%emt 0:01:01]} ({Predecessor:} 11... Rc8 12. Ne5 Bf5 13. Bxf5 exf5 14. Qg3 Ne4 15. Qh3 Rxc1 16. Rfxc1 Nxd2 17. Qxf5 Bxe5 18. fxe5 {0-1 (69) Montell Lorenzo,J (2270)-Cuartas,J (2529) Sitges 2010}) 12. e4 {[%emt 0:03:36]} dxe4 {[%emt 0:02:19]} 13. Nxe4 {[%emt 0:00:06]} Rc8 {[%emt 0:03:37]} 14. Bd2 {[%emt 0:04:43]} Nbd5 {[%emt 0:06:08]} 15. Nxd6 {[%emt 0:04:17]} Qxd6 {[%emt 0:00:22]} 16. Nh4 {[%emt 0:20:51]} Rfe8 {[%emt 0:11:02]} 17. Qe5 {[%emt 0:03:02]} (17. Qd1 $17 {was worth a try.}) 17... Qb6 {[%emt 0:04:26]} 18. Nf3 {[%emt 0:03:20]} Ng4 {[%emt 0:04:08]} ({Much less strong is} 18... Qxb2 19. Bxf5 exf5 20. Qxf5 $17) 19. Qe2 {[%emt 0:11:26]} Qxb2 {[%emt 0:01:27]} 20. Bxf5 {[%emt 0:00:16]} exf5 {[%emt 0:00:48]} 21. Qd3 {[%emt 0:00:13]} Qc2 {[%emt 0:14:21]} 22. Qa3 {[%emt 0:00:10]} Qc7 {[%emt 0:08:57]} 23. Rac1 {[%emt 0:04:06] [#]} Qb8 $1 {[%emt 0:02:12]} 24. Rxc8 {[%emt 0:02:14]} Rxc8 {[%emt 0:00:22]} ({Much less strong is} 24... Qxc8 25. Qxa7 Qa8 26. Qxa8 $17) 25. h3 {[%emt 0:00:20]} Ngf6 {[%emt 0:00:39]} ({Weaker is} 25... Nxf4 26. hxg4 Ne2+ 27. Kf2 $14) 26. Ne5 {[%emt 0:00:18]} Ne4 {[%emt 0:00:54]} 27. Be1 {[%emt 0:01:42]} Rd8 {[%emt 0:03:09]} 28. Bh4 {[%emt 0:03:28]} f6 {[%emt 0:00:46]} 29. Nd3 {[%emt 0:01:08]} b6 {[%emt 0:00:37]} 30. Qb3 $2 {[%emt 0:01:28]} (30. Bf2) 30... Nd2 {[%emt 0:00:23]} 31. Qa4 {[%emt 0:00:52]} Nxf1 {[%emt 0:00:09]} 32. Kxf1 {[%emt 0:00:23]} Qc7 $19 {[%emt 0:02:00]} 33. Kg1 {[%emt 0:01:06]} Nxf4 {[%emt 0:01:04]} 34. Nxf4 {[%emt 0:02:06]} Qxf4 {[%emt 0:00:08]} 35. Bf2 {[%emt 0:00:09]} Rc8 {[%emt 0:01:02]} 36. g3 {[%emt 0:01:22]} Rc1+ {[%emt 0:00:11]} 0-1